fUST/lending_fUST_20240625
["ID","MTS","AMOUNT","RATE_DAILY","PERIOD"]
[330340973,1719264645522,-500.0,0.00016712,2]
[330340974,1719264645531,-500.0,0.00016712,2]
[330340975,1719264645541,-500.0,0.00016712,2]
[330340976,1719264645550,-500.0,0.00016712,2]
[330340977,1719264645559,-19588.55,0.00016712,2]
[330340978,1719264645569,-500.0,0.00016712,2]
[330340979,1719264645578,-757.0,0.00016712,2]
[330340980,1719264645587,-500.0,0.00016712,2]
[330340981,1719264645596,-500.0,0.00016712,2]
[330340982,1719264645605,-500.0,0.00016712,2]
[330340983,1719264645614,-3927.28,0.00016712,2]
[330340984,1719264645624,-1990.66,0.00016712,2]
[330340985,1719264645633,-2707.71,0.00016712,2]
[330340986,1719264645642,-500.0,0.00016712,2]
[330340987,1719264645651,-151.0,0.00016712,2]
[330340988,1719264645660,-500.0,0.00016712,2]
[330340989,1719264645669,-500.0,0.00016712,2]
[330340990,1719264645678,-500.0,0.00016712,2]
[330340991,1719264645687,-500.0,0.00016712,2]
[330340992,1719264645696,-500.0,0.00016712,2]
[330340993,1719264645706,-500.0,0.00016712,2]
[330340994,1719264645715,-500.0,0.00016712,2]
[330340995,1719264645724,-500.0,0.00016712,2]
[330340996,1719264645734,-502.41508248,0.00016712,2]
[330340997,1719264645744,-3569.07,0.00016712,2]
[330340998,1719264645762,-500.0,0.00016712,2]
[330340999,1719264645772,-500.0,0.00016712,2]
[330341000,1719264645781,-500.0,0.00016712,2]
[330341001,1719264645791,-500.0,0.00016712,2]
[330341002,1719264645801,-151.0,0.00016712,2]
[330341003,1719264645811,-500.0,0.00016712,2]
[330341004,1719264645820,-151.0,0.00016712,2]
[330341005,1719264645829,-500.0,0.00016712,2]
[330341006,1719264645841,-151.0,0.00016712,2]
[330341007,1719264645850,-151.0,0.00016712,2]
[330341008,1719264645859,-500.0,0.00016712,2]
[330341009,1719264645868,-500.0,0.00016712,2]
[330341010,1719264645878,-1474.1,0.00016712,2]
[330341011,1719264645887,-500.0,0.00016712,2]
[330341012,1719264645896,-506.79653843,0.00016712,2]
[330341013,1719264645906,-500.0,0.00016712,2]
[330341014,1719264645915,-500.0,0.00016712,2]
[330341015,1719264645925,-500.0,0.00016712,2]
[330341016,1719264645934,-151.0,0.00016712,2]
[330341017,1719264645943,-9792.83,0.00016712,2]
[330341018,1719264645952,-151.0,0.00016712,2]
[330341019,1719264645962,-990.31,0.00016712,2]
[330341020,1719264645971,-500.0,0.00016712,2]
[330341021,1719264645981,-6615.7,0.00016712,2]
[330341022,1719264645990,-6823.15,0.00016712,2]
[330341023,1719264645999,-500.0,0.00016712,2]
[330341024,1719264646009,-500.0,0.00016712,2]
[330341025,1719264646019,-500.0,0.00016712,2]
[330341026,1719264646028,-694.35,0.00016712,2]
[330341027,1719264646037,-558.57,0.00016712,2]
[330341028,1719264646047,-500.0,0.00016712,2]
[330341029,1719264646057,-535.23,0.00016712,2]
[330341030,1719264646066,-2317.5,0.00016712,2]
[330341031,1719264646075,-500.0,0.00016712,2]
[330341032,1719264646085,-709.28,0.00016712,2]
[330341033,1719264646096,-982.29,0.00016712,2]
[330341034,1719264646105,-500.0,0.00016712,2]
[330341035,1719264646114,-1018.45,0.00016712,2]
[330341036,1719264646123,-662.66,0.00016712,2]
[330341037,1719264646132,-500.0,0.00016712,2]
[330341038,1719264646141,-896.76,0.00016712,2]
[330341039,1719264646150,-500.0,0.00016712,2]
[330341040,1719264646161,-5811.24,0.00016712,2]
[330341041,1719264646170,-500.0,0.00016712,2]
[330341042,1719264646180,-500.0,0.00016712,2]
[330341043,1719264646189,-500.0,0.00016712,2]
[330341044,1719264646200,-500.0,0.00016712,2]
[330341045,1719264646209,-500.0,0.00016712,2]
[330341046,1719264646218,-505.89,0.00016712,2]
[330341047,1719264646229,-500.0,0.00016712,2]
[330341048,1719264646239,-500.0,0.00016712,2]
[330341049,1719264646252,-520.54,0.00016712,2]
[330341050,1719264646261,-803.81,0.00016712,2]
[330341051,1719264646271,-500.0,0.00016712,2]
[330341052,1719264646280,-500.0,0.00016712,2]
[330341057,1719264646289,-500.0,0.00016712,2]
[330341060,1719264646299,-500.0,0.00016712,2]
[330341062,1719264646307,-500.0,0.00016712,2]
[330341063,1719264646316,-500.0,0.00016712,2]
[330341064,1719264646325,-500.0,0.00016712,2]
[330341065,1719264646334,-918.19,0.00016712,2]
[330341066,1719264646343,-151.0,0.00016712,2]
[330341067,1719264646352,-1336.75,0.00016712,2]
[330341068,1719264646361,-500.0,0.00016712,2]
[330341069,1719264646370,-500.0,0.00016712,2]
[330341070,1719264646380,-500.0,0.00016712,2]
[330341071,1719264646389,-686.31,0.00016712,2]
[330341072,1719264646399,-151.0,0.00016712,2]
[330341073,1719264646408,-500.0,0.00016712,2]
[330341074,1719264646418,-552.55,0.00016712,2]
[330341075,1719264646428,-1729.03,0.00016712,2]
[330341076,1719264646438,-781.62,0.00016712,2]
[330341077,1719264646449,-5038.84,0.00016712,2]
[330341078,1719264646459,-644.33,0.00016712,2]
[330341079,1719264646468,-471.47202702,0.00016712,2]
[330341080,1719264646479,-500.0,0.00016712,2]
[330341081,1719264646489,-506.18196919,0.00016712,2]
[330341082,1719264646500,-500.0,0.00016712,2]
[330341083,1719264646509,-500.0,0.00016712,2]
[330341084,1719264646518,-2599.56,0.00016712,2]
[330341085,1719264646529,-792.92,0.00016712,2]
[330341086,1719264646540,-500.0,0.00016712,2]
[330341087,1719264646549,-500.0,0.00016712,2]
[330341088,1719264646561,-500.0,0.00016712,2]
[330341089,1719264646572,-500.0,0.00016712,2]
[330341090,1719264646582,-2178.01,0.00016712,2]
[330341091,1719264646592,-151.0,0.00016712,2]
[330341092,1719264646601,-500.0,0.00016712,2]
[330341093,1719264646610,-500.0,0.00016712,2]
[330341094,1719264646620,-500.0,0.00016712,2]
[330341096,1719264646629,-500.0,0.00016712,2]
[330341098,1719264646639,-796.42,0.00016712,2]
[330341100,1719264646648,-1000.0,0.00016731,2]
[330341102,1719264646657,-1000.0,0.00016736,2]
[330341103,1719264646667,-300.0,0.00016739,2]
[330341105,1719264646676,-1000.0,0.00016741,2]
[330341107,1719264646686,-1000.0,0.00016746,2]
[330341109,1719264646695,-1000.0,0.00016758,2]
[330341111,1719264646704,-1000.0,0.00016762,2]
[330341113,1719264646714,-1000.0,0.00016762,2]
[330341116,1719264646725,-1000.0,0.00016765,2]
[330341117,1719264646735,-1000.0,0.00016767,2]
[330341120,1719264646747,-1000.0,0.00016782,2]
[330341122,1719264646760,-1000.0,0.00016783,2]
[330341124,1719264646770,-300.0,0.00016785,2]
[330341126,1719264646779,-1000.0,0.00016813,2]
[330341128,1719264646789,-151.0,0.00016813,2]
[330341130,1719264646800,-151.0,0.00016813,2]
[330341132,1719264646810,-322.201485,0.00016813,2]
[330341134,1719264646820,-192.297929,0.00016813,2]
[330341136,1719264646830,-322.201485,0.00016813,2]
[330341137,1719264646843,-192.297929,0.00016813,2]
[330341139,1719264646852,-151.0,0.00016813,2]
[330341141,1719264646862,-151.0,0.00016813,2]
[330341143,1719264646872,-151.0,0.00016813,2]
[330341145,1719264646882,-338.22440558,0.00016816,2]
[330341147,1719264646892,-1000.0,0.00016821,2]
[330341149,1719264646901,-1000.0,0.00016844,2]
[330341151,1719264646911,-1000.0,0.00016851,2]
[330341153,1719264646921,-1000.0,0.00016873,2]
[330341154,1719264646931,-1000.0,0.00016879,2]
[330341156,1719264646941,-1000.0,0.00016895,2]
[330341158,1719264646950,-300.0,0.00016911,2]
[330341160,1719264646959,-1000.0,0.00016915,2]
[330341161,1719264646969,-1000.0,0.00016917,2]
[330341162,1719264646979,-1000.0,0.00016934,2]
[330341163,1719264646989,-1000.0,0.00016935,2]
[330341164,1719264646998,-300.0,0.00016936,2]
[330341165,1719264647016,-1000.0,0.00016948,2]
[330341166,1719264647026,-394.80475809,0.00016948,2]
[330341167,1719264647035,-500.0,0.00016985,2]
[330341168,1719264647045,-500.0,0.00016985,2]
[330341169,1719264647056,-500.0,0.00016985,2]
[330341170,1719264647065,-151.0,0.00016985,2]
[330341171,1719264647075,-565.42867806,0.00016986,2]
[330341172,1719264647083,-500.0,0.00016986,2]
[330341173,1719264647092,-500.0,0.00016986,2]
[330341175,1719264647101,-500.0,0.00016986,2]
[330341177,1719264647111,-500.0,0.00016986,2]
[330341179,1719264647120,-500.0,0.00016986,2]
[330341180,1719264647129,-500.0,0.00016986,2]
[330341181,1719264647139,-549.4,0.00016986,2]
[330341182,1719264647148,-500.0,0.00016986,2]
[330341183,1719264647158,-500.0,0.00016986,2]
[330341184,1719264647168,-500.0,0.00016986,2]
[330341185,1719264647177,-500.0,0.00016986,2]
[330341186,1719264647187,-577.26659246,0.00016986,2]
[330341187,1719264647196,-500.0,0.00016986,2]
[330341188,1719264647205,-500.0,0.00016986,2]
[330341189,1719264647215,-500.0,0.00016986,2]
[330341190,1719264647224,-500.0,0.00016986,2]
[330341191,1719264647233,-500.0,0.00016986,2]
[330341192,1719264647243,-483.20501922,0.00016986,2]
[330341193,1719264647257,-500.0,0.00016986,2]
[330341194,1719264647266,-500.0,0.00016986,2]
[330341195,1719264647276,-174.40398164,0.00016986,2]
[330341196,1719264647285,-500.0,0.00016986,2]
[330341197,1719264647295,-500.0,0.00016986,2]
[330341198,1719264647304,-500.0,0.00016986,2]
[330341199,1719264647313,-500.0,0.00016986,2]
[330341200,1719264647322,-511.04772201,0.00016986,2]
[330341201,1719264647332,-500.0,0.00016986,2]
[330341202,1719264647341,-500.0,0.00016986,2]
[330341203,1719264647351,-500.0,0.00016986,2]
[330341204,1719264647360,-500.0,0.00016986,2]
[330341205,1719264647369,-500.0,0.00016986,2]
[330341206,1719264647378,-500.0,0.00016986,2]
[330341207,1719264647387,-151.0,0.00016986,2]
[330341208,1719264647396,-500.0,0.00016986,2]
[330341209,1719264647405,-500.0,0.00016986,2]
[330341210,1719264647414,-500.0,0.00016986,2]
[330341211,1719264647424,-500.0,0.00016986,2]
[330341212,1719264647433,-500.0,0.00016986,2]
[330341213,1719264647442,-500.0,0.00016986,2]
[330341214,1719264647451,-151.0,0.00016986,2]
[330341215,1719264647460,-504.0,0.00016986,2]
[330341216,1719264647469,-500.0,0.00016986,2]
[330341217,1719264647479,-500.0,0.00016986,2]
[330341218,1719264647488,-500.0,0.00016986,2]
[330341219,1719264647497,-500.0,0.00016986,2]
[330341220,1719264647511,-250.0,0.00016986,2]
[330341221,1719264647520,-982.57,0.00016986,2]
[330341222,1719264647529,-500.0,0.00016986,2]
[330341223,1719264647538,-500.0,0.00016986,2]
[330341224,1719264647547,-500.0,0.00016986,2]
[330341225,1719264647556,-500.0,0.00016986,2]
[330341226,1719264647565,-500.0,0.00016986,2]
[330341227,1719264647574,-500.0,0.00016986,2]
[330341228,1719264647583,-1111.25,0.00016986,2]
[330341229,1719264647592,-500.0,0.00016986,2]
[330341230,1719264647602,-527.50902678,0.00016986,2]
[330341231,1719264647611,-500.0,0.00016986,2]
[330341232,1719264647739,-400.17954492,0.00016986,2]
[330341233,1719264647750,-901.03,0.00016986,2]
[330341234,1719264647766,-849.11,0.00016986,2]
[330341235,1719264647775,-500.0,0.00016986,2]
[330341236,1719264647784,-151.0,0.00016986,2]
[330341237,1719264647794,-500.0,0.00016986,2]
[330341238,1719264647806,-500.0,0.00016986,2]
[330341239,1719264647815,-739.39,0.00016986,2]
[330341240,1719264647825,-500.0,0.00016986,2]
[330341241,1719264647837,-500.0,0.00016986,2]
[330341242,1719264647847,-500.0,0.00016986,2]
[330341243,1719264647857,-500.0,0.00016986,2]
[330341244,1719264647867,-500.0,0.00016986,2]
[330341245,1719264647876,-500.0,0.00016986,2]
[330341246,1719264647885,-500.0,0.00016986,2]
[330341247,1719264647895,-500.0,0.00016986,2]
[330341248,1719264647906,-500.0,0.00016986,2]
[330341249,1719264647916,-500.0,0.00016986,2]
[330341250,1719264647926,-500.0,0.00016986,2]
[330341251,1719264647935,-500.0,0.00016986,2]
[330341252,1719264647945,-500.0,0.00016986,2]
[330341253,1719264647955,-500.0,0.00016986,2]
[330341254,1719264647964,-500.0,0.00016986,2]
[330341255,1719264647974,-1035.76,0.00016986,2]
[330341256,1719264647983,-151.0,0.00016986,2]
[330341257,1719264647993,-541.01,0.00016986,2]
[330341258,1719264648005,-500.0,0.00016986,2]
[330341259,1719264648015,-1326.78,0.00016986,2]
[330341260,1719264648024,-151.0,0.00016986,2]
[330341261,1719264648033,-151.0,0.00016986,2]
[330341262,1719264648046,-500.0,0.00016986,2]
[330341263,1719264648055,-500.0,0.00016986,2]
[330341264,1719264648065,-500.0,0.00016986,2]
[330341265,1719264648074,-151.0,0.00016986,2]
[330341266,1719264648083,-151.0,0.00016986,2]
[330341267,1719264648093,-500.0,0.00016986,2]
[330341268,1719264648103,-500.0,0.00016986,2]
[330341269,1719264648112,-500.0,0.00016986,2]
[330341270,1719264648122,-500.0,0.00016986,2]
[330341271,1719264648131,-151.0,0.00016986,2]
[330341272,1719264648140,-151.0,0.00016986,2]
[330341273,1719264648151,-151.0,0.00016986,2]
[330341274,1719264648160,-276.144056,0.00016986,2]
[330341275,1719264648170,-500.0,0.00016986,2]
[330341276,1719264648179,-1000.0,0.00016986,2]
[330341277,1719264648189,-1000.0,0.00016986,2]
[330341278,1719264648198,-1000.0,0.00016986,2]
[330341279,1719264648208,-1000.0,0.00016986,2]
[330341280,1719264648218,-500.0,0.00016986,2]
[330341281,1719264648228,-1000.0,0.00016986,2]
[330341282,1719264648237,-1000.0,0.00016986,2]
[330341283,1719264648247,-1000.0,0.00016986,2]
[330341284,1719264648259,-1000.0,0.00016986,2]
[330341285,1719264648268,-1000.0,0.00016986,2]
[330341286,1719264648277,-1000.0,0.00016986,2]
[330341287,1719264648287,-1000.0,0.00016986,2]
[330341288,1719264648296,-1000.0,0.00016986,2]
[330341289,1719264648306,-1000.0,0.00016986,2]
[330341290,1719264648316,-1000.0,0.00016986,2]
[330341291,1719264648326,-500.0,0.00016986,2]
[330341292,1719264648336,-1000.0,0.00016986,2]
[330341293,1719264648345,-1000.0,0.00016986,2]
[330341294,1719264648355,-1000.0,0.00016986,2]
[330341295,1719264648364,-1000.0,0.00016986,2]
[330341296,1719264648373,-1000.0,0.00016986,2]
[330341297,1719264648383,-1000.0,0.00016986,2]
[330341298,1719264648394,-1000.0,0.00016986,2]
[330341299,1719264648403,-1000.0,0.00016986,2]
[330341300,1719264648412,-940.72,0.00016986,2]
[330341301,1719264648422,-1000.0,0.00016986,2]
[330341302,1719264648434,-1000.0,0.00016986,2]
[330341303,1719264648444,-1000.0,0.00016986,2]
[330341304,1719264648453,-1000.0,0.00016986,2]
[330341305,1719264648463,-1000.0,0.00016986,2]
[330341306,1719264648473,-1000.0,0.00016986,2]
[330341307,1719264648482,-1000.0,0.00016986,2]
[330341308,1719264648492,-1000.0,0.00016986,2]
[330341309,1719264648503,-1000.0,0.00016986,2]
[330341310,1719264648512,-138.0145585,0.00016986,2]
[330341311,1719264751420,150.5,0.0001698,62]
[330341312,1719264751570,245.04,0.0001698,62]
[330341313,1719264752266,150.5,0.0001697,62]
[330341314,1719264752615,150.5,0.0001696,62]
[330341317,1719264859102,157.894736,0.00013699,2]
[330341318,1719264870875,150.5,0.0001698,62]
[330341319,1719264870916,281.26,0.0001698,62]
[330341320,1719264871254,150.5,0.0001698,62]
[330341321,1719264871473,150.5,0.0001697,62]
[330341322,1719264871849,150.5,0.0001698,62]
[330341323,1719264871936,150.5,0.0001697,62]
[330341324,1719264872096,173.0,0.0001696,62]
[330341325,1719264872236,150.5,0.0001697,62]
[330341326,1719264872291,150.5,0.0001698,62]
[330341327,1719264872450,150.5,0.0001696,62]
[330341328,1719264872836,299.0,0.0001696,62]
[330341329,1719264872891,150.5,0.0001697,62]
[330341330,1719264873471,251.0,0.0001696,62]
[330341334,1719265037907,55907.97845505,0.00025,60]
[330341335,1719265037938,239766.945848,0.00025,60]
[330341336,1719265236994,861.5,0.000261,120]
[330341348,1719265536863,5032.0,0.00025,60]
[330341351,1719265559440,483788.97752596,0.00025,60]
[330341352,1719265603223,157.894736,0.00013699,2]
[330341355,1719265641347,90456.99725917,0.00026,120]
[330341356,1719265641375,35000.0,0.00026,120]
[330341357,1719265641397,170000.0,0.00026,120]
[330341358,1719265641423,807511.30735202,0.00026,120]
[330341361,1719265724727,-807.90799791,0.00014001,2]
[330341362,1719265724865,-268.28745974,0.00014001,2]
[330341363,1719265780266,24900.0,0.00013998,2]
[330341370,1719265832951,-208.27257392,0.00014001,2]
[330341371,1719265832961,-1226.81656383,0.00014456,2]
[330341373,1719265832972,-177.232404,0.00014457,2]
[330341375,1719265832981,-250.0,0.00014495,2]
[330341377,1719265832991,-455.8144287,0.00014531,2]
[330341379,1719265833000,-2825.49865465,0.00015081,2]
[330341381,1719265833010,-491.33508365,0.00015096,2]
[330341383,1719265833021,-533.97036201,0.00015119,2]
[330341385,1719265833031,-300.0,0.00015992,2]
[330341387,1719265833040,-21606.33354604,0.00015993,2]
[330341389,1719265833050,-393.93863467,0.00016001,2]
[330341390,1719265833059,-27986.35383117,0.00016099,2]
[330341397,1719265839274,-1847.64465184,0.00016099,2]
[330341401,1719265839288,-166.00151699,0.00016099,2]
[330341404,1719265839298,-194.02042676,0.000161,2]
[330341407,1719265839309,-176.00680323,0.000161,2]
[330341409,1719265839320,-154.94576898,0.00016145,2]
[330341411,1719265839330,-3354.10683628,0.00016338,2]
[330341412,1719265839343,-1025.39492162,0.00016338,2]
[330341413,1719265839357,-291.73566336,0.00016338,2]
[330341414,1719265839368,-531.1679143,0.00016438,2]
[330341415,1719265839378,-500.0,0.00016438,2]
[330341416,1719265839388,-500.0,0.00016438,2]
[330341417,1719265839398,-500.0,0.00016438,2]
[330341419,1719265839408,-500.0,0.00016438,2]
[330341421,1719265839418,-500.0,0.00016438,2]
[330341422,1719265839427,-250.0,0.00016438,2]
[330341423,1719265839437,-500.0,0.00016438,2]
[330341425,1719265839448,-500.0,0.00016438,2]
[330341427,1719265839459,-500.0,0.00016438,2]
[330341429,1719265839468,-388.28091327,0.00016438,2]
[330341430,1719265839478,-500.0,0.00016438,2]
[330341431,1719265839488,-500.0,0.00016438,2]
[330341432,1719265839497,-500.0,0.00016438,2]
[330341433,1719265839508,-500.0,0.00016438,2]
[330341434,1719265839517,-500.0,0.00016438,2]
[330341435,1719265839528,-500.0,0.00016438,2]
[330341436,1719265839537,-500.0,0.00016438,2]
[330341437,1719265839546,-500.0,0.00016438,2]
[330341438,1719265839556,-500.0,0.00016438,2]
[330341439,1719265839565,-500.0,0.00016438,2]
[330341440,1719265839575,-579.11980338,0.00016438,2]
[330341441,1719265839584,-972.34,0.00016438,2]
[330341442,1719265839594,-830.07,0.00016438,2]
[330341443,1719265839604,-500.0,0.00016438,2]
[330341444,1719265839613,-784.64,0.00016438,2]
[330341445,1719265839623,-646.96,0.00016438,2]
[330341446,1719265839633,-500.0,0.00016438,2]
[330341447,1719265839643,-500.0,0.00016438,2]
[330341448,1719265839653,-500.0,0.00016438,2]
[330341449,1719265839663,-500.0,0.00016438,2]
[330341450,1719265839673,-500.0,0.00016438,2]
[330341451,1719265839684,-527.28066969,0.00016438,2]
[330341452,1719265839693,-500.0,0.00016438,2]
[330341453,1719265839703,-500.0,0.00016438,2]
[330341454,1719265839712,-500.0,0.00016438,2]
[330341455,1719265839722,-500.0,0.00016438,2]
[330341456,1719265839731,-500.0,0.00016438,2]
[330341457,1719265839740,-500.0,0.00016438,2]
[330341458,1719265839750,-500.0,0.00016438,2]
[330341459,1719265839760,-500.0,0.00016438,2]
[330341460,1719265839770,-500.0,0.00016438,2]
[330341461,1719265839779,-500.0,0.00016438,2]
[330341462,1719265839789,-500.0,0.00016438,2]
[330341463,1719265839798,-947.95,0.00016438,2]
[330341464,1719265839808,-500.0,0.00016438,2]
[330341465,1719265839817,-500.0,0.00016438,2]
[330341466,1719265839827,-500.0,0.00016438,2]
[330341467,1719265839837,-500.0,0.00016438,2]
[330341468,1719265839846,-1160.93,0.00016438,2]
[330341469,1719265839856,-533.21,0.00016438,2]
[330341470,1719265839866,-500.0,0.00016438,2]
[330341471,1719265839876,-500.0,0.00016438,2]
[330341472,1719265839885,-500.0,0.00016438,2]
[330341473,1719265839895,-500.0,0.00016438,2]
[330341474,1719265839907,-500.0,0.00016438,2]
[330341475,1719265839917,-649.95,0.00016438,2]
[330341476,1719265839927,-500.0,0.00016438,2]
[330341477,1719265839936,-500.0,0.00016438,2]
[330341478,1719265839946,-500.0,0.00016438,2]
[330341479,1719265839956,-500.0,0.00016438,2]
[330341480,1719265839965,-500.0,0.00016438,2]
[330341481,1719265839976,-500.0,0.00016438,2]
[330341482,1719265839986,-500.0,0.00016438,2]
[330341483,1719265839995,-500.0,0.00016438,2]
[330341484,1719265840004,-919.32,0.00016438,2]
[330341485,1719265840014,-500.0,0.00016438,2]
[330341486,1719265840024,-269.26554346,0.00016438,2]
[330341487,1719265840035,-500.0,0.00016438,2]
[330341488,1719265840044,-1052.88,0.00016438,2]
[330341489,1719265840054,-500.0,0.00016438,2]
[330341490,1719265840063,-500.0,0.00016438,2]
[330341491,1719265840074,-500.0,0.00016438,2]
[330341492,1719265840083,-500.0,0.00016438,2]
[330341493,1719265840093,-500.0,0.00016438,2]
[330341494,1719265840103,-500.0,0.00016438,2]
[330341495,1719265840113,-500.0,0.00016438,2]
[330341496,1719265840122,-500.0,0.00016438,2]
[330341497,1719265840131,-500.0,0.00016438,2]
[330341498,1719265840141,-500.0,0.00016438,2]
[330341499,1719265840150,-500.0,0.00016438,2]
[330341500,1719265840160,-18263.58,0.00016438,2]
[330341501,1719265840174,-500.0,0.00016438,2]
[330341502,1719265840184,-500.0,0.00016438,2]
[330341503,1719265840193,-500.0,0.00016438,2]
[330341504,1719265840203,-277.61904652,0.00016438,2]
[330341505,1719265840349,-222.38095348,0.00016438,2]
[330341506,1719265840359,-500.0,0.00016438,2]
[330341507,1719265840368,-500.0,0.00016438,2]
[330341508,1719265840378,-500.0,0.00016438,2]
[330341509,1719265840388,-286.97219915,0.00016438,2]
[330341510,1719265840398,-853.43,0.00016438,2]
[330341511,1719265840407,-500.0,0.00016438,2]
[330341512,1719265840416,-1883.05,0.00016438,2]
[330341513,1719265840426,-500.0,0.00016438,2]
[330341514,1719265840435,-500.0,0.00016438,2]
[330341515,1719265840444,-500.0,0.00016438,2]
[330341516,1719265840454,-240.40523116,0.00016438,2]
[330341523,1719265841599,-489.64476884,0.00016438,2]
[330341526,1719265841609,-326.81676017,0.00016438,2]
[330341527,1719265841619,-500.0,0.00016438,2]
[330341529,1719265841628,-500.0,0.00016438,2]
[330341531,1719265841637,-500.0,0.00016438,2]
[330341533,1719265841647,-500.0,0.00016438,2]
[330341535,1719265841656,-3766.92,0.00016438,2]
[330341537,1719265841665,-3357.23,0.00016438,2]
[330341539,1719265841675,-500.0,0.00016438,2]
[330341542,1719265841685,-500.0,0.00016438,2]
[330341544,1719265841694,-569.31,0.00016438,2]
[330341545,1719265841703,-2881.83,0.00016438,2]
[330341547,1719265841713,-735.58,0.00016438,2]
[330341549,1719265841722,-527.77124211,0.00016438,2]
[330341551,1719265841732,-500.0,0.00016438,2]
[330341552,1719265841741,-500.0,0.00016438,2]
[330341553,1719265841751,-994.45,0.00016438,2]
[330341554,1719265841760,-6335.71489701,0.00016438,2]
[330341555,1719265841776,-2754.52510299,0.00016438,2]
[330341556,1719265841785,-252.1873984,0.00016438,2]
[330341557,1719265841794,-500.0,0.00016438,2]
[330341558,1719265841803,-500.0,0.00016438,2]
[330341559,1719265841812,-500.0,0.00016438,2]
[330341560,1719265841821,-500.0,0.00016438,2]
[330341561,1719265841831,-907.78,0.00016438,2]
[330341562,1719265841841,-500.0,0.00016438,2]
[330341563,1719265841850,-500.0,0.00016438,2]
[330341564,1719265841860,-500.0,0.00016438,2]
[330341565,1719265841870,-500.0,0.00016438,2]
[330341566,1719265841879,-500.0,0.00016438,2]
[330341567,1719265841888,-500.0,0.00016438,2]
[330341568,1719265841898,-500.0,0.00016438,2]
[330341569,1719265841908,-500.0,0.00016438,2]
[330341570,1719265841918,-500.0,0.00016438,2]
[330341571,1719265841927,-500.0,0.00016438,2]
[330341572,1719265841936,-500.0,0.00016438,2]
[330341573,1719265841945,-2178.62,0.00016438,2]
[330341574,1719265841955,-636.49,0.00016438,2]
[330341575,1719265841964,-1351.25,0.00016438,2]
[330341576,1719265841973,-500.0,0.00016438,2]
[330341577,1719265841984,-650.17,0.00016438,2]
[330341578,1719265841994,-6428.18,0.00016438,2]
[330341579,1719265842004,-768.91,0.00016438,2]
[330341580,1719265842158,-500.0,0.00016438,2]
[330341581,1719265842171,-502.60032372,0.00016438,2]
[330341582,1719265842182,-933.58,0.00016438,2]
[330341583,1719265842191,-500.0,0.00016438,2]
[330341584,1719265842200,-504.6858302,0.00016438,2]
[330341585,1719265842210,-500.0,0.00016438,2]
[330341586,1719265842219,-500.0,0.00016438,2]
[330341587,1719265842229,-512.02,0.00016438,2]
[330341588,1719265842239,-6489.0,0.00016438,2]
[330341589,1719265842252,-500.0,0.00016438,2]
[330341590,1719265842263,-5326.97,0.00016438,2]
[330341591,1719265842274,-802.52,0.00016438,2]